fUSD/lending_fUSD_20260512
["ID","MTS","AMOUNT","RATE_DAILY","PERIOD"]
[422053750,1778529085000,500.0,0.00041037,120]
[422053749,1778529085000,500.0,0.00041037,120]
[422053758,1778529086000,500.0,0.00041037,120]
[422053757,1778529086000,500.0,0.00041037,120]
[422053756,1778529086000,500.0,0.00041037,120]
[422053755,1778529086000,500.0,0.00041037,120]
[422053754,1778529086000,500.0,0.00041037,120]
[422053753,1778529086000,500.0,0.00041037,120]
[422053752,1778529086000,500.0,0.00041037,120]
[422053761,1778529087000,500.0,0.00041037,120]
[422053760,1778529087000,500.0,0.00041037,120]
[422053759,1778529087000,500.0,0.00041037,120]
[422053762,1778529091000,500.0,0.00041037,120]
[422053763,1778529091000,500.0,0.00041037,120]
[422053766,1778529092000,483.08,0.00041037,120]
[422053765,1778529092000,500.0,0.00041037,120]
[422053764,1778529092000,500.0,0.00041037,120]
[422053768,1778529095000,500.0,0.00041037,120]
[422053767,1778529095000,500.0,0.00041037,120]
[422053776,1778529096000,172.36,0.00041037,120]
[422053775,1778529096000,500.0,0.00041037,120]
[422053774,1778529096000,500.0,0.00041037,120]
[422053773,1778529096000,500.0,0.00041037,120]
[422053772,1778529096000,500.0,0.00041037,120]
[422053771,1778529096000,500.0,0.00041037,120]
[422053770,1778529096000,500.0,0.00041037,120]
[422053769,1778529096000,500.0,0.00041037,120]
[422053777,1778529097000,500.0,0.00041037,120]
[422053778,1778529097000,500.0,0.00041037,120]
[422053781,1778529097000,380.06,0.00041037,120]
[422053780,1778529097000,500.0,0.00041037,120]
[422053779,1778529097000,500.0,0.00041037,120]
[422053783,1778529098000,500.0,0.00041037,120]
[422053784,1778529098000,586.39879729,0.00041037,120]
[422053782,1778529098000,500.0,0.00041037,120]
[422053786,1778529099000,500.0,0.00041037,120]
[422053785,1778529099000,500.0,0.00041037,120]
[422053796,1778529100000,775.02213803,0.00041037,120]
[422053795,1778529100000,500.0,0.00041037,120]
[422053794,1778529100000,775.02213803,0.00041037,120]
[422053793,1778529100000,500.0,0.00041037,120]
[422053792,1778529100000,227.90135389,0.00041037,120]
[422053791,1778529100000,775.02213803,0.00041037,120]
[422053790,1778529100000,500.0,0.00041037,120]
[422053789,1778529100000,500.0,0.00041037,120]
[422053788,1778529100000,500.0,0.00041037,120]
[422053787,1778529100000,775.02213803,0.00041037,120]
[422053797,1778529101000,515.86,0.00041037,120]
[422053798,1778529101000,775.02213803,0.00041037,120]
[422053799,1778529101000,775.02213803,0.00041037,120]
[422053803,1778529102000,775.02213802,0.00041037,120]
[422053802,1778529102000,775.02213802,0.00041037,120]
[422053801,1778529102000,775.02213802,0.00041037,120]
[422053800,1778529102000,775.02213803,0.00041037,120]
[422053807,1778529103000,775.02213802,0.00041037,120]
[422053806,1778529103000,775.02213802,0.00041037,120]
[422053805,1778529103000,775.02213802,0.00041037,120]
[422053804,1778529103000,775.02213802,0.00041037,120]
[422053809,1778529104000,185.35,0.00041037,120]
[422053808,1778529104000,500.0,0.00041037,120]
[422053810,1778529106000,500.0,0.00041037,120]
[422053811,1778529106000,633.74,0.00041037,120]
[422053812,1778529106000,500.0,0.00041037,120]
[422053813,1778529107000,500.0,0.00041037,120]
[422053816,1778529107000,500.0,0.00041037,120]
[422053815,1778529107000,500.0,0.00041037,120]
[422053814,1778529107000,203.96931815,0.00041037,120]
[422053818,1778529108000,500.0,0.00041037,120]
[422053817,1778529108000,500.0,0.00041037,120]
[422053819,1778529110000,500.0,0.00041037,120]
[422053820,1778529111000,500.0,0.00041037,120]
[422053821,1778529113000,500.0,0.00041037,120]
[422053824,1778529113000,500.0,0.00041037,120]
[422053822,1778529113000,500.0,0.00041037,120]
[422053826,1778529113000,500.0,0.00041037,120]
[422053828,1778529113000,500.0,0.00041037,120]
[422053827,1778529113000,570.79,0.00041037,120]
[422053825,1778529113000,500.0,0.00041037,120]
[422053823,1778529113000,500.0,0.00041037,120]
[422053833,1778529114000,500.0,0.00041037,120]
[422053832,1778529114000,500.0,0.00041037,120]
[422053831,1778529114000,500.0,0.00041037,120]
[422053830,1778529114000,614.46,0.00041037,120]
[422053829,1778529114000,500.0,0.00041037,120]
[422053835,1778529115000,334.91,0.00041037,120]
[422053834,1778529115000,500.0,0.00041037,120]
[422053836,1778529120000,500.0,0.00041037,120]
[422053838,1778529122000,500.0,0.00041037,120]
[422053837,1778529122000,500.0,0.00041037,120]
[422053839,1778529122000,500.0,0.00041037,120]
[422053842,1778529122000,262.11,0.00041037,120]
[422053841,1778529122000,500.0,0.00041037,120]
[422053843,1778529122000,431.13,0.00041037,120]
[422053840,1778529122000,500.0,0.00041037,120]
[422053847,1778529124000,6888.0,0.00041037,120]
[422053845,1778529124000,1030.0,0.00041037,120]
[422053846,1778529124000,500.0,0.00041037,120]
[422053844,1778529124000,500.0,0.00041037,120]
[422053848,1778529125000,500.0,0.00041037,120]
[422053850,1778529125000,151.0,0.00041037,120]
[422053851,1778529125000,500.0,0.00041037,120]
[422053849,1778529125000,500.0,0.00041037,120]
[422053854,1778529125000,500.0,0.00041037,120]
[422053853,1778529125000,500.0,0.00041037,120]
[422053856,1778529125000,500.0,0.00041037,120]
[422053855,1778529125000,151.0,0.00041037,120]
[422053852,1778529125000,1068.11,0.00041037,120]
[422053863,1778529126000,500.0,0.00041037,120]
[422053862,1778529126000,500.0,0.00041037,120]
[422053861,1778529126000,500.0,0.00041037,120]
[422053860,1778529126000,151.0,0.00041037,120]
[422053859,1778529126000,477.26,0.00041037,120]
[422053858,1778529126000,500.0,0.00041037,120]
[422053857,1778529126000,500.0,0.00041037,120]
[422053866,1778529127000,528.07894368,0.00041037,120]
[422053865,1778529127000,620.0,0.00041037,120]
[422053867,1778529127000,500.0,0.00041037,120]
[422053864,1778529127000,151.0,0.00041037,120]
[422053869,1778529127000,151.0,0.00041037,120]
[422053870,1778529127000,642.94,0.00041037,120]
[422053871,1778529127000,500.0,0.00041037,120]
[422053872,1778529127000,156.587,0.00041037,120]
[422053868,1778529127000,151.0,0.00041037,120]
[422053877,1778529128000,152.0,0.00041037,120]
[422053878,1778529128000,151.0,0.00041037,120]
[422053876,1778529128000,156.587,0.00041037,120]
[422053875,1778529128000,500.0,0.00041037,120]
[422053874,1778529128000,151.0,0.00041037,120]
[422053873,1778529128000,152.0,0.00041037,120]
[422053879,1778529129000,500.0,0.00041037,120]
[422053880,1778529129000,152.0,0.00041037,120]
[422053883,1778529129000,500.0,0.00041037,120]
[422053882,1778529129000,500.0,0.00041037,120]
[422053881,1778529129000,151.0,0.00041037,120]
[422053884,1778529130000,152.0,0.00041037,120]
[422053887,1778529130000,500.0,0.00041037,120]
[422053885,1778529130000,151.0,0.00041037,120]
[422053886,1778529130000,151.0,0.00041037,120]
[422053888,1778529130000,500.0,0.00041037,120]
[422053893,1778529130000,151.0,0.00041037,120]
[422053890,1778529130000,500.0,0.00041037,120]
[422053891,1778529130000,152.0,0.00041037,120]
[422053892,1778529130000,536.84,0.00041037,120]
[422053894,1778529130000,500.0,0.00041037,120]
[422053889,1778529130000,500.0,0.00041037,120]
[422053898,1778529131000,151.0,0.00041037,120]
[422053899,1778529131000,500.0,0.00041037,120]
[422053897,1778529131000,152.0,0.00041037,120]
[422053896,1778529131000,151.0,0.00041037,120]
[422053895,1778529131000,152.0,0.00041037,120]
[422053900,1778529132000,500.0,0.00041037,120]
[422053901,1778529132000,500.0,0.00041037,120]
[422053904,1778529132000,151.0,0.00041037,120]
[422053903,1778529132000,152.0,0.00041037,120]
[422053902,1778529132000,500.0,0.00041037,120]
[422053910,1778529133000,500.0,0.00041037,120]
[422053909,1778529133000,151.0,0.00041037,120]
[422053908,1778529133000,500.0,0.00041037,120]
[422053907,1778529133000,205.36717928,0.00041037,120]
[422053905,1778529133000,152.0,0.00041037,120]
[422053906,1778529133000,151.0,0.00041037,120]
[422053911,1778529134000,500.0,0.00041037,120]
[422053912,1778529134000,500.0,0.00041037,120]
[422053913,1778529134000,500.0,0.00041037,120]
[422053914,1778529134000,151.0,0.00041037,120]
[422053916,1778529134000,169.93,0.00041037,120]
[422053917,1778529134000,500.0,0.00041037,120]
[422053918,1778529134000,500.0,0.00041037,120]
[422053915,1778529134000,500.0,0.00041037,120]
[422053925,1778529135000,293.26,0.00041037,120]
[422053924,1778529135000,500.0,0.00041037,120]
[422053923,1778529135000,500.0,0.00041037,120]
[422053922,1778529135000,500.0,0.00041037,120]
[422053921,1778529135000,500.0,0.00041037,120]
[422053920,1778529135000,500.0,0.00041037,120]
[422053919,1778529135000,151.0,0.00041037,120]
[422053927,1778529136000,500.0,0.00041037,120]
[422053926,1778529136000,500.0,0.00041037,120]
[422053929,1778529136000,577.19683419,0.00041037,120]
[422053928,1778529136000,500.0,0.00041037,120]
[422053932,1778529137000,500.0,0.00041037,120]
[422053931,1778529137000,500.0,0.00041037,120]
[422053930,1778529137000,500.0,0.00041037,120]
[422053934,1778529138000,633.82,0.00041037,120]
[422053933,1778529138000,500.0,0.00041037,120]
[422053936,1778529139000,500.0,0.00041037,120]
[422053937,1778529139000,500.0,0.00041037,120]
[422053935,1778529139000,500.0,0.00041037,120]
[422053940,1778529140000,500.0,0.00041037,120]
[422053939,1778529140000,500.0,0.00041037,120]
[422053938,1778529140000,500.0,0.00041037,120]
[422053941,1778529141000,500.0,0.00041037,120]
[422053942,1778529141000,471.49,0.00041037,120]
[422053944,1778529141000,500.0,0.00041037,120]
[422053945,1778529141000,500.0,0.00041037,120]
[422053943,1778529141000,500.0,0.00041037,120]
[422053949,1778529142000,500.0,0.00041037,120]
[422053948,1778529142000,201.12,0.00041037,120]
[422053947,1778529142000,500.0,0.00041037,120]
[422053946,1778529142000,500.0,0.00041037,120]
[422053954,1778529143000,500.0,0.00041037,120]
[422053953,1778529143000,500.0,0.00041037,120]
[422053952,1778529143000,331.8,0.00041037,120]
[422053951,1778529143000,500.0,0.00041037,120]
[422053950,1778529143000,500.0,0.00041037,120]
[422053955,1778529144000,500.0,0.00041037,120]
[422053956,1778529144000,500.0,0.00041037,120]
[422053959,1778529145000,500.0,0.00041037,120]
[422053958,1778529145000,500.0,0.00041037,120]
[422053957,1778529145000,203.53293774,0.00041037,120]
[422053961,1778529146000,584.4,0.00041037,120]
[422053960,1778529146000,500.0,0.00041037,120]
[422053965,1778529148000,370.64,0.00041037,120]
[422053964,1778529148000,500.0,0.00041037,120]
[422053963,1778529148000,242.31725613,0.00041037,120]
[422053962,1778529148000,500.0,0.00041037,120]
[422053966,1778529150000,500.0,0.00041037,120]
[422053969,1778529151000,500.0,0.00041037,120]
[422053968,1778529151000,500.0,0.00041037,120]
[422053970,1778529151000,500.0,0.00041037,120]
[422053967,1778529151000,500.0,0.00041037,120]
[422053972,1778529151000,500.0,0.00041037,120]
[422053975,1778529151000,373.22,0.00041037,120]
[422053971,1778529151000,628.58,0.00041037,120]
[422053973,1778529151000,500.0,0.00041037,120]
[422053974,1778529151000,500.0,0.00041037,120]
[422053979,1778529152000,500.0,0.00041037,120]
[422053978,1778529152000,500.0,0.00041037,120]
[422053977,1778529152000,500.0,0.00041037,120]
[422053976,1778529152000,500.0,0.00041037,120]
[422053987,1778529153000,500.0,0.00041037,120]
[422053985,1778529153000,500.0,0.00041037,120]
[422053984,1778529153000,500.0,0.00041037,120]
[422053982,1778529153000,500.0,0.00041037,120]
[422053983,1778529153000,500.0,0.00041037,120]
[422053981,1778529153000,500.0,0.00041037,120]
[422053980,1778529153000,500.0,0.00041037,120]
[422053986,1778529153000,346.97,0.00041037,120]
[422053988,1778529154000,587.4,0.00041037,120]
[422053989,1778529155000,500.0,0.00041037,120]
[422053990,1778529156000,283.32,0.00041037,120]
[422053993,1778529158000,500.0,0.00041037,120]
[422053992,1778529158000,500.0,0.00041037,120]
[422053991,1778529158000,500.0,0.00041037,120]
[422053994,1778529158000,384.87,0.00041037,120]
[422053996,1778529161000,500.0,0.00041037,120]
[422053995,1778529161000,500.0,0.00041037,120]
[422053997,1778529162000,500.0,0.00041037,120]
[422053998,1778529168000,500.0,0.00041037,120]
[422054000,1778529168000,500.0,0.00041037,120]
[422053999,1778529168000,500.0,0.00041037,120]
[422054002,1778529175000,291.54,0.00041037,120]
[422054001,1778529175000,500.0,0.00041037,120]
[422054003,1778529179000,500.0,0.00041037,120]
[422054004,1778529180000,543.57,0.00041037,120]
[422054006,1778529182000,516.68142535,0.00041037,120]
[422054005,1778529182000,516.68142535,0.00041037,120]
[422054007,1778529183000,516.68142535,0.00041037,120]
[422054009,1778529183000,500.0,0.00041037,120]
[422054008,1778529183000,516.68142535,0.00041037,120]
[422054011,1778529183000,622.83,0.00041037,120]
[422054010,1778529183000,516.68142535,0.00041037,120]
[422054012,1778529183000,516.68142535,0.00041037,120]
[422054015,1778529184000,516.68142535,0.00041037,120]
[422054014,1778529184000,516.68142535,0.00041037,120]
[422054013,1778529184000,516.68142535,0.00041037,120]
[422054018,1778529185000,217.074397,0.00041037,120]
[422054017,1778529185000,516.68142535,0.00041037,120]
[422054016,1778529185000,516.68142535,0.00041037,120]
[422054019,1778529394000,898.49736929,0.0002738,120]
[422054020,1778529674000,526.96,0.0001217,2]
[422054023,1778529675000,526.96,0.00014016,2]
[422054022,1778529675000,526.96,0.00013401,2]
[422054021,1778529675000,526.96,0.00012785,2]
[422054024,1778529675000,526.96,0.00014631,2]
[422054025,1778529693000,1790577.119583,0.00015,2]
[422054026,1778529754000,1385.34345,0.00026438,120]
[422054028,1778529837000,235.642711,0.00026438,120]
[422054029,1778529915000,201.65338994,7.888e-05,2]
[422054030,1778529931000,235.64271,0.00024357,120]
[422054031,1778530022000,321.597586,0.0002254,120]
[422054032,1778530065000,160.798793,0.0002254,120]
[422054045,1778530231000,-250.0,9.944e-05,2]
[422054051,1778530231000,-736.0,0.00012031,2]
[422054049,1778530231000,-433.0,0.00010937,2]
[422054048,1778530231000,-39570.10639057,0.000107,2]
[422054044,1778530231000,-1680.0,9.943e-05,2]
[422054046,1778530231000,-12293.59857396,0.0001,2]
[422054047,1778530231000,-163.33,0.0001,2]
[422054041,1778530231000,-448.41821506,9.943e-05,2]
[422054040,1778530231000,-250.0,9.943e-05,2]
[422054039,1778530231000,-34876.06036413,9.04e-05,2]
[422054038,1778530231000,-817.97913253,9.04e-05,2]
[422054037,1778530231000,-1200.0,9.039e-05,2]
[422054036,1778530231000,-150.0,9.039e-05,2]
[422054043,1778530231000,-255.0,9.943e-05,2]
[422054050,1778530231000,-2351.0,0.00010937,2]
[422054042,1778530231000,-250.0,9.943e-05,2]
[422054053,1778530231000,-1229.05,0.00013454,2]
[422054052,1778530231000,-461.0,0.00013233,2]
[422054068,1778530231000,-150.0,0.00014487,2]
[422054067,1778530231000,-253.27,0.0001445,2]
[422054065,1778530231000,-150.0,0.00014237,2]
[422054064,1778530231000,-177.7,0.00014221,2]
[422054063,1778530231000,-150.0,0.00013987,2]
[422054062,1778530231000,-150.0,0.00013737,2]
[422054066,1778530231000,-170.8,0.00014268,2]
[422054060,1778530231000,-302.57,0.00013578,2]
[422054059,1778530231000,-112694.64,0.00013498,2]
[422054058,1778530231000,-271.31136747,0.00013488,2]
[422054055,1778530231000,-176.58888063,0.00013488,2]
[422054057,1778530231000,-150.0,0.00013488,2]
[422054054,1778530231000,-202.66399536,0.00013488,2]
[422054056,1778530231000,-154.3724558,0.00013488,2]
[422054061,1778530231000,-170.8,0.00013699,2]
[422054077,1778530232000,-181.21259689,0.00014986,2]
[422054081,1778530232000,-372.3002707,0.00014999,2]
[422054080,1778530232000,-169.3531412,0.00014999,2]
[422054079,1778530232000,-467.18544571,0.00014999,2]
[422054076,1778530232000,-150.0,0.00014953,2]
[422054074,1778530232000,-2410.71307604,0.000149,2]
[422054073,1778530232000,-17000.0,0.000149,5]
[422054075,1778530232000,-893.88784297,0.000149,2]
[422054070,1778530232000,-150.0,0.00014737,2]
[422054069,1778530232000,-5600.0,0.000147,5]
[422054071,1778530232000,-11300.0,0.000148,5]
[422054072,1778530232000,-170.8,0.00014838,2]
[422054083,1778530232000,-300.0,0.00014999,2]
[422054085,1778530232000,-200751.61533304,0.00015,2]
[422054082,1778530232000,-300.0,0.00014999,2]
[422054078,1778530232000,-153.70075008,0.0001499,2]
[422054096,1778530232000,-2396.21346327,0.00015,2]
[422054094,1778530232000,-911.72705474,0.00015,2]
[422054110,1778530232000,-157752.04953643,0.00015,2]
[422054109,1778530232000,-39762.42708105,0.00015,2]
[422054107,1778530232000,-500.0,0.00014799,2]
[422054106,1778530232000,-3213.21263462,0.00015,2]
[422054105,1778530232000,-799.19188636,0.00015,2]
[422054102,1778530232000,-308.51705602,0.00014799,2]
[422054108,1778530232000,-88694.6150879,0.00015,2]
[422054099,1778530232000,-500.0,0.00014799,2]
[422054103,1778530232000,-500.0,0.00014799,2]
[422054104,1778530232000,-500.0,0.00014799,2]
[422054101,1778530232000,-208.51550187,0.00014799,2]
[422054098,1778530232000,-500.0,0.00014799,2]
[422054097,1778530232000,-500.48480402,0.00014799,2]
[422054100,1778530232000,-500.0,0.00014799,2]
[422054095,1778530232000,-1051.54508863,0.00015,2]
[422054128,1778530241000,-500.0,0.00014799,2]
[422054151,1778530241000,-19399.29272198,0.00015,2]
[422054158,1778530241000,-208.15897961,0.00015103,2]
[422054154,1778530241000,-560509.68244495,0.00015,2]
[422054161,1778530241000,-526.96,0.00015247,2]
[422054156,1778530241000,-843332.63995602,0.00015,2]
[422054160,1778530241000,-1229.05,0.00015136,2]
[422054133,1778530241000,-557.75879474,0.00014799,2]
[422054159,1778530241000,-214.82098671,0.00015104,2]
[422054131,1778530241000,-500.0,0.00014799,2]
[422054120,1778530241000,-500.0,0.00014799,2]
[422054126,1778530241000,-500.0,0.00014799,2]
[422054124,1778530241000,-500.0,0.00014799,2]
[422054137,1778530241000,-500.0,0.00014799,2]
[422054141,1778530241000,-500.0,0.00014799,2]
[422054135,1778530241000,-500.0,0.00014799,2]
[422054139,1778530241000,-500.0,0.00014799,2]
[422054122,1778530241000,-500.0,0.00014799,2]
[422054118,1778530241000,-500.0,0.00014799,2]
[422054157,1778530241000,-173.0,0.00015,2]
[422054143,1778530241000,-500.0,0.00014799,2]
[422054162,1778530241000,-526.96,0.00015862,2]
[422054116,1778530241000,-500.0,0.00014799,2]
[422054165,1778530241000,-500.0,0.00016438,2]
[422054163,1778530241000,-300.0,0.00016405,2]
[422054188,1778530241000,-500.0,0.00016438,2]
[422054181,1778530241000,-500.0,0.00016438,2]
[422054183,1778530241000,-500.0,0.00016438,2]
[422054179,1778530241000,-500.0,0.00016438,2]
[422054182,1778530241000,-500.0,0.00016438,2]
[422054177,1778530241000,-500.0,0.00016438,2]
[422054178,1778530241000,-500.0,0.00016438,2]
[422054184,1778530241000,-500.0,0.00016438,2]
[422054175,1778530241000,-500.0,0.00016438,2]
[422054180,1778530241000,-500.0,0.00016438,2]
[422054176,1778530241000,-500.0,0.00016438,2]
[422054172,1778530241000,-350.0,0.00016438,2]
[422054171,1778530241000,-500.0,0.00016438,2]
[422054173,1778530241000,-500.0,0.00016438,2]
[422054167,1778530241000,-500.0,0.00016438,2]
[422054174,1778530241000,-500.0,0.00016438,2]
[422054166,1778530241000,-500.0,0.00016438,2]
[422054170,1778530241000,-500.0,0.00016438,2]
[422054169,1778530241000,-500.0,0.00016438,2]
[422054186,1778530241000,-500.0,0.00016438,2]
[422054164,1778530241000,-500.0,0.00016438,2]
[422054248,1778530242000,-526.96,0.00018324,2]
[422054244,1778530242000,-151.0,0.00018,2]
[422054245,1778530242000,-151.0,0.00018,2]
[422054237,1778530242000,-22700.0,0.000178,6]
[422054233,1778530242000,-151.0,0.0001754,2]
[422054235,1778530242000,-526.96,0.00017708,2]
[422054234,1778530242000,-1282.73,0.000176,2]
[422054229,1778530242000,-157.04431344,0.0001754,2]
[422054236,1778530242000,-194.39,0.0001774,2]
[422054242,1778530242000,-151.0,0.00018,2]
[422054238,1778530242000,-28400.0,0.000179,6]
[422054241,1778530242000,-151.0,0.00018,2]
[422054254,1778530242000,-38390.36600858,0.00019,2]
[422054243,1778530242000,-151.0,0.00018,2]
[422054239,1778530242000,-151.0,0.00018,2]
[422054240,1778530242000,-151.0,0.00018,2]
[422054247,1778530242000,-31930.49586364,0.0001814,2]
[422054256,1778530242000,-151.0,0.00019178,2]
[422054252,1778530242000,-526.96,0.00018939,2]
[422054249,1778530242000,-893.88784291,0.00018471,2]
[422054253,1778530242000,-4190.0,0.00019,2]
[422054257,1778530242000,-689.863832,0.000192,2]
[422054228,1778530242000,-500.0,0.00017539,2]
[422054251,1778530242000,-2410.71307599,0.00018633,2]
[422054255,1778530242000,-363.66092569,0.0001901,7]
[422054258,1778530242000,-689.863832,0.000194,2]
[422054246,1778530242000,-151.0,0.00018,2]
[422054232,1778530242000,-151.0,0.0001754,2]
[422054224,1778530242000,-500.0,0.00017539,2]
[422054231,1778530242000,-151.0,0.0001754,2]
[422054199,1778530242000,-500.0,0.00016438,2]
[422054201,1778530242000,-500.0,0.00016438,2]
[422054192,1778530242000,-500.0,0.00016438,2]
[422054190,1778530242000,-500.0,0.00016438,2]
[422054204,1778530242000,-2410.71307599,0.00016767,2]
[422054259,1778530242000,-526.96,0.00019555,2]
[422054203,1778530242000,-526.96,0.00016478,2]
[422054206,1778530242000,-350.0,0.00017089,2]
[422054205,1778530242000,-1229.05,0.00016818,2]
[422054207,1778530242000,-526.96,0.00017093,2]
[422054195,1778530242000,-500.0,0.00016438,2]
[422054197,1778530242000,-500.0,0.00016438,2]
[422054230,1778530242000,-151.0,0.0001754,2]
[422054209,1778530242000,-3175.6727579,0.0001744,2]
[422054208,1778530242000,-3053.67,0.00017215,2]
[422054222,1778530242000,-500.0,0.00017539,2]
[422054223,1778530242000,-500.0,0.00017539,2]
[422054219,1778530242000,-4055.4,0.0001751,2]
[422054212,1778530242000,-208.6780413,0.0001744,2]
[422054221,1778530242000,-500.0,0.00017539,2]
[422054211,1778530242000,-298.03892662,0.0001744,2]
[422054214,1778530242000,-3643.94226334,0.0001744,2]
[422054217,1778530242000,-198.20883558,0.0001744,3]
[422054226,1778530242000,-168.66164474,0.00017539,2]
[422054227,1778530242000,-500.0,0.00017539,2]
[422054225,1778530242000,-500.0,0.00017539,2]
[422054220,1778530242000,-500.0,0.00017539,2]
[422054261,1778530242000,-689.863832,0.000196,2]
[422054317,1778530242000,-521.13525858,0.00022713,2]
[422054273,1778530242000,-1282.73,0.000201,2]
[422054299,1778530242000,-545.86190587,0.00022106,2]
[422054294,1778530242000,-154.0,0.00022,2]
[422054298,1778530242000,-893.88784291,0.00022043,2]
[422054296,1778530242000,-526.96,0.00022016,2]
[422054297,1778530242000,-545.86190587,0.00022026,2]
[422054302,1778530242000,-3540.0,0.0002229,2]
[422054312,1778530242000,-2539.76,0.00022562,2]
[422054303,1778530242000,-2410.71307599,0.00022367,2]
[422054301,1778530242000,-150.0,0.0002229,2]
[422054306,1778530242000,-545.86190587,0.00022558,2]
[422054308,1778530242000,-299.99,0.00022562,7]
[422054310,1778530242000,-3478.96,0.00022562,2]
[422054293,1778530242000,-1295.0,0.00022,2]
[422054304,1778530242000,-748.0,0.00022399,5]
[422054311,1778530242000,-2577.48,0.00022562,2]
[422054307,1778530242000,-999.99,0.00022562,2]
[422054305,1778530242000,-545.86190587,0.00022512,2]
[422054314,1778530242000,-2060.25,0.00022562,2]
[422054313,1778530242000,-708.05,0.00022562,2]
[422054315,1778530242000,-526.96,0.00022632,2]
[422054316,1778530242000,-545.86190587,0.00022645,2]
[422054319,1778530242000,-545.86190587,0.00022937,2]
[422054321,1778530242000,-1282.73,0.00023,7]
[422054320,1778530242000,-320.0,0.00023,30]
[422054322,1778530242000,-508.0,0.00023,2]
[422054250,1778530242000,-1229.05,0.000185,2]
[422054309,1778530242000,-150.99,0.00022562,2]
[422054295,1778530242000,-151.0,0.00022,2]
[422054318,1778530242000,-545.86190587,0.00022815,2]
[422054292,1778530242000,-508.0,0.00022,2]
[422054275,1778530242000,-1229.05,0.00020182,2]
[422054291,1778530242000,-151.0,0.00021918,2]
[422054274,1778530242000,-526.96,0.0002017,2]
[422054264,1778530242000,-150.0,0.000196,2]
[422054262,1778530242000,-150.0,0.000196,2]
[422054266,1778530242000,-689.863832,0.000198,2]
[422054272,1778530242000,-151.0,0.0002,2]
[422054269,1778530242000,-508.0,0.0002,2]
[422054271,1778530242000,-154.0,0.0002,2]
[422054270,1778530242000,-1295.0,0.0002,2]
[422054268,1778530242000,-689.863832,0.0002,2]
[422054276,1778530242000,-2410.71307599,0.000205,2]
[422054279,1778530242000,-508.0,0.00021,2]
[422054265,1778530242000,-150.0,0.000196,2]
[422054287,1778530242000,-1223.0,0.00021855,2]
[422054300,1778530242000,-157.04431339,0.00022219,2]